[Event "Commonwealth Open 2019"]
[Site "Delhi"]
[Date "2019.07.07"]
[Round "9.9"]
[White "Wagh, Suyog"]
[Black "Swayams, Mishra"]
[Result "0-1"]
[ECO "E10"]
[WhiteElo "2250"]
[BlackElo "2493"]
[Annotator "ChessBase"]
[PlyCount "114"]
[EventDate "2019.06.30"]
[EventType "swiss"]
[EventCountry "IND"]
[SourceTitle "playchess.com"]
[Source "ChessBase"]
[SourceQuality "1"]
[TimeControl "5400+30"]

1. d4 {[%emt 0:02:18]} Nf6 {[%emt 0:00:00]} 2. c4 {[%emt 0:00:32]} e6 {[%emt 0:00:00]} 3. Nf3 {[%emt 0:00:03]} d5 {[%emt 0:00:00]} 4. g3 {[%emt 0:00:07]} Bb4+ {[%emt 0:01:02]} 5. Bd2 {[%emt 0:00:10]} Bd6 {[%emt 0:00:39]} 6. Bg2 {[%emt 0:05:50]} c6 {[%emt 0:00:20]} 7. Qc2 {[%emt 0:00:23]} Nbd7 {[%emt 0:01:25]} 8. O-O {[%emt 0:00:12]} Ne4 {[%emt 0:00:03]} 9. Nc3 {[%emt 0:02:27]} Nxc3 {[%emt 0:04:23]} 10. Bxc3 {[%emt 0:00:55]} O-O {[%emt 0:03:04]} 11. Nd2 {[%emt 0:10:41]} f5 {[%emt 0:00:39]} 12. b4 {[%emt 0:00:02]} Nf6 {[%emt 0:00:23]} 13. a4 {[%emt 0:01:40]} Bd7 {[%emt 0:00:33]} 14. b5 {[%emt 0:00:29]} Ne4 {[%emt 0:00:25]} 15. Nxe4 {[%emt 0:02:12]} fxe4 {[%emt 0:00:09]} 16. Qb3 {[%emt 0:00:33]} a6 {[%emt 0:08:06]} 17. cxd5 {[%emt 0:07:00]} cxd5 {[%emt 0:01:03]} 18. Bb4 {[%emt 0:00:18]} Qe7 {[%emt 0:02:06]} 19. Bxd6 {[%emt 0:01:07]} Qxd6 {[%emt 0:01:14]} 20. b6 {[%emt 0:07:58]} Rac8 {[%emt 0:01:22]} 21. Rfc1 {[%emt 0:00:43]} Rc6 {[%emt 0:11:03]} 22. a5 {[%emt 0:18:05]} Rfc8 {[%emt 0:00:45]} 23. Rxc6 {[%emt 0:05:22]} Qxc6 {[%emt 0:00:11]} 24. e3 {[%emt 0:00:18]} Be8 {[%emt 0:08:15]} 25. Bf1 {[%emt 0:01:32]} Bh5 {[%emt 0:02:09]} 26. Qb2 {[%emt 0:01:46]} Bf3 {[%emt 0:02:04]} 27. Rb1 {[%emt 0:01:34]} g5 {[%emt 0:03:35]} 28. h3 {[%emt 0:03:25]} h5 {[%emt 0:00:22]} 29. Qb4 {[%emt 0:00:14]} Kf7 {[%emt 0:00:20]} 30. Bg2 {[%emt 0:01:07]} g4 {[%emt 0:00:49]} 31. h4 {[%emt 0:01:05]} Bxg2 {[%emt 0:03:03]} 32. Kxg2 {[%emt 0:02:10]} Ke8 {[%emt 0:00:02]} 33. Qa3 {[%emt 0:03:09]} Kd7 {[%emt 0:00:27]} 34. Qb4 {[%emt 0:01:09]} Qc2 {[%emt 0:00:29]} 35. Rb2 {[%emt 0:00:52]} Qd1 {[%emt 0:01:28]} 36. Rb1 {[%emt 0:00:55]} Qc2 {[%emt 0:00:44]} 37. Rb2 {[%emt 0:00:13]} Qc4 {[%emt 0:00:12]} 38. Qa3 {[%emt 0:00:15]} Qc3 {[%emt 0:01:58]} 39. Qa4+ {[%emt 0:11:06]} Ke7 {[%emt 0:00:45]} 40. Rb3 {[%emt 0:00:17]} Qe1 {[%emt 0:05:54]} 41. Qa3+ {[%emt 0:00:12]} Kd7 {[%emt 0:00:06]} 42. Qa4+ {[%emt 0:00:13]} Rc6 {[%emt 0:00:40]} 43. Rb2 {[%emt 0:00:05]} Qc1 {[%emt 0:00:37]} 44. Qb4 {[%emt 0:01:54]} Qd1 {[%emt 0:04:06]} 45. Rb1 {[%emt 0:00:57]} Rc4 {[%emt 0:00:52]} 46. Qb2 {[%emt 0:00:47]} Qc2 {[%emt 0:00:47]} 47. Qxc2 {[%emt 0:02:32]} Rxc2 {[%emt 0:01:43]} 48. Kf1 {[%emt 0:00:12]} Kd6 {[%emt 0:00:47]} 49. Ke1 {[%emt 0:00:03]} e5 {[%emt 0:00:46]} 50. dxe5+ {[%emt 0:00:08]} Kxe5 {[%emt 0:00:02]} 51. Rb3 {[%emt 0:00:02]} Kd6 {[%emt 0:00:22]} 52. Rb1 {[%emt 0:00:58]} Kc6 {[%emt 0:00:28]} 53. Rb3 {[%emt 0:00:25]} Rc5 {[%emt 0:00:57]} 54. Ra3 {[%emt 0:00:44]} Kb5 {[%emt 0:00:05]} 55. Kd2 {[%emt 0:00:04]} Kb4 {[%emt 0:00:09]} 56. Ra2 {[%emt 0:00:03]} Kb3 {[%emt 0:01:30]} 57. Ra1 {[%emt 0:00:12]} Kb2 {[%emt 0:00:17]} 0-1

[Event "Commonwealth Open 2019"]
[Site "Delhi"]
[Date "2019.07.07"]
[Round "9.10"]
[White "Shyaamnikhil, P."]
[Black "Krishna, C R G"]
[Result "1-0"]
[ECO "C15"]
[WhiteElo "2434"]
[BlackElo "2481"]
[Annotator "ChessBase"]
[PlyCount "87"]
[EventDate "2019.06.30"]
[EventType "swiss"]
[EventCountry "IND"]
[SourceTitle "playchess.com"]
[Source "ChessBase"]
[SourceQuality "1"]
[TimeControl "5400+30"]

1. e4 {[%emt 0:00:00]} e6 {[%emt 0:00:00]} 2. d4 {[%emt 0:00:00]} d5 {[%emt 0:00:00]} 3. Nc3 {[%emt 0:00:00]} Bb4 {[%emt 0:00:00]} 4. Nge2 {[%emt 0:00:17]} dxe4 {[%emt 0:01:59]} 5. a3 {[%emt 0:00:05]} Be7 {[%emt 0:07:32]} 6. Nxe4 {[%emt 0:00:10]} Nf6 {[%emt 0:01:08]} 7. Nxf6+ {[%emt 0:00:10]} Bxf6 {[%emt 0:00:06]} 8. Be3 {[%emt 0:00:05]} O-O {[%emt 0:04:00]} 9. Qd2 {[%emt 0:00:08]} b6 {[%emt 0:27:17]} 10. O-O-O {[%emt 0:01:33]} Bb7 {[%emt 0:01:01]} 11. Nf4 {[%emt 0:03:49]} Nd7 {[%emt 0:03:08]} 12. Kb1 {[%emt 0:01:14]} Be7 {[%emt 0:01:25]} 13. f3 {[%emt 0:08:00]} Nf6 {[%emt 0:01:20]} 14. h4 {[%emt 0:02:33]} a5 {[%emt 0:09:05]} 15. h5 {[%emt 0:05:36]} a4 {[%emt 0:00:29]} 16. c4 {[%emt 0:01:49]} Ra5 {[%emt 0:06:07]} 17. Qc2 {[%emt 0:01:39]} h6 {[%emt 0:06:50]} 18. Be2 {[%emt 0:03:49]} Qa8 {[%emt 0:05:35]} 19. Bd2 {[%emt 0:00:46]} Rd8 {[%emt 0:19:16]} 20. Bxa5 {[%emt 0:04:12]} Qxa5 {[%emt 0:00:03]} 21. Bd3 {[%emt 0:03:58]} Kf8 {[%emt 0:02:01]} 22. Qf2 {[%emt 0:12:31]} Qg5 {[%emt 0:01:16]} 23. g3 {[%emt 0:11:35]} Bd6 {[%emt 0:00:01]} 24. Rh4 {[%emt 0:01:15]} Qa5 {[%emt 0:00:02]} 25. Ne2 {[%emt 0:02:53]} Be7 {[%emt 0:01:03]} 26. Rhh1 {[%emt 0:05:31]} Qa8 {[%emt 0:01:18]} 27. Rhf1 {[%emt 0:00:47]} c5 {[%emt 0:00:49]} 28. Bc2 {[%emt 0:04:42]} Ba6 {[%emt 0:00:02]} 29. dxc5 {[%emt 0:03:05]} Bxc5 {[%emt 0:00:15]} 30. Rxd8+ {[%emt 0:02:17]} Qxd8 {[%emt 0:00:02]} 31. Qg2 {[%emt 0:00:16]} Bxc4 {[%emt 0:00:09]} 32. Rd1 {[%emt 0:00:06]} Qa8 {[%emt 0:02:07]} 33. Nc3 {[%emt 0:00:27]} b5 {[%emt 0:00:26]} 34. Ne4 {[%emt 0:04:42]} Be7 {[%emt 0:00:03]} 35. Nxf6 {[%emt 0:00:16]} Bxf6 {[%emt 0:00:08]} 36. Be4 {[%emt 0:00:09]} Qb8 {[%emt 0:00:39]} 37. Rd7 {[%emt 0:01:08]} Qe5 {[%emt 0:01:16]} 38. Qd2 {[%emt 0:00:22]} Qb8 {[%emt 0:00:30]} 39. f4 {[%emt 0:04:36]} Be7 {[%emt 0:00:29]} 40. Rb7 {[%emt 0:00:59]} Qd6 {[%emt 0:00:19]} 41. Qxd6 {[%emt 0:01:58]} Bxd6 {[%emt 0:00:01]} 42. Bc6 {[%emt 0:00:10]} g6 {[%emt 0:00:17]} 43. Bxb5 {[%emt 0:00:39]} Bd5 {[%emt 0:00:03]} 44. Rd7 {[%emt 0:00:26]} 1-0

[Event "Commonwealth Open 2019"]
[Site "Delhi"]
[Date "2019.07.07"]
[Round "9.11"]
[White "Srihari L R"]
[Black "Thejkumar, M. S."]
[Result "1/2-1/2"]
[ECO "A06"]
[WhiteElo "2200"]
[BlackElo "2458"]
[Annotator "ChessBase"]
[PlyCount "73"]
[EventDate "2019.06.30"]
[EventType "swiss"]
[EventCountry "IND"]
[SourceTitle "playchess.com"]
[Source "ChessBase"]
[SourceQuality "1"]
[TimeControl "5400+30"]

1. Nf3 {[%emt 0:00:00]} d5 {[%emt 0:00:05]} 2. g3 {[%emt 0:00:00]} Nf6 {[%emt 0:00:57]} 3. Bg2 {[%emt 0:00:08]} Bf5 {[%emt 0:01:02]} 4. O-O {[%emt 0:00:15]} e6 {[%emt 0:00:14]} 5. d3 {[%emt 0:00:06]} h6 {[%emt 0:00:17]} 6. c4 {[%emt 0:00:08]} c6 {[%emt 0:00:09]} 7. Be3 {[%emt 0:00:49]} dxc4 {[%emt 0:05:29]} 8. dxc4 {[%emt 0:00:26]} Nbd7 {[%emt 0:00:06]} 9. Nc3 {[%emt 0:18:24]} Qc7 {[%emt 0:01:08]} 10. a3 {[%emt 0:04:54]} a5 {[%emt 0:05:24]} 11. h3 {[%emt 0:09:27]} Be7 {[%emt 0:03:54]} 12. Rc1 {[%emt 0:02:24]} O-O {[%emt 0:02:17]} 13. Na4 {[%emt 0:02:27]} e5 {[%emt 0:15:33]} 14. Qb3 {[%emt 0:14:27]} Ne4 {[%emt 0:08:18]} 15. Rfd1 {[%emt 0:05:32]} Rad8 {[%emt 0:12:01]} 16. Nd2 {[%emt 0:09:53]} Ndc5 {[%emt 0:05:44]} 17. Nxc5 {[%emt 0:02:16]} Nxc5 {[%emt 0:00:08]} 18. Bxc5 {[%emt 0:14:59]} Bxc5 {[%emt 0:00:07]} 19. Ne4 {[%emt 0:00:23]} Be7 {[%emt 0:01:19]} 20. Qc3 {[%emt 0:03:47]} a4 {[%emt 0:02:56]} 21. Qc2 {[%emt 0:01:07]} Qb6 {[%emt 0:03:03]} 22. Nf6+ {[%emt 0:02:08]} Bxf6 {[%emt 0:01:31]} 23. Qxf5 {[%emt 0:00:07]} Bg5 {[%emt 0:01:24]} 24. Rb1 {[%emt 0:02:24]} Rd5 25. Rd3 Rxd3 {[%emt 0:04:14]} 26. Rd1 {[%emt 0:00:50]} Rxa3 27. bxa3 Qb2 {[%emt 0:00:40]} 28. h4 {[%emt 0:00:50]} g6 {[%emt 0:02:04]} 29. Qb1 {[%emt 0:01:08]} Qxb1 {[%emt 0:02:57]} 30. Rxb1 {[%emt 0:00:02]} Be7 {[%emt 0:00:08]} 31. Rxb7 {[%emt 0:00:08]} Bxa3 {[%emt 0:00:07]} 32. Ra7 {[%emt 0:00:30]} Rb8 {[%emt 0:09:36]} 33. Bxc6 {[%emt 0:00:52]} Bc5 {[%emt 0:00:29]} 34. Rxa4 {[%emt 0:00:10]} Rb1+ {[%emt 0:00:10]} 35. Kg2 {[%emt 0:00:06]} Rb2 {[%emt 0:00:03]} 36. Kf1 {[%emt 0:00:37]} Rb1+ {[%emt 0:00:56]} 37. Kg2 {[%emt 0:00:10]} 1/2-1/2

[Event "Commonwealth Open 2019"]
[Site "Delhi"]
[Date "2019.07.07"]
[Round "9.12"]
[White "Varshini, V."]
[Black "Tania, Sachdev"]
[Result "0-1"]
[ECO "C86"]
[WhiteElo "2087"]
[BlackElo "2401"]
[Annotator "NA"]
[PlyCount "74"]
[EventDate "2019.06.30"]
[EventType "swiss"]
[EventCountry "IND"]
[SourceTitle "playchess.com"]
[Source "ChessBase"]
[SourceQuality "1"]
[TimeControl "5400+30"]

1. e4 {[%emt 0:00:00]} e5 {[%emt 0:04:43]} 2. Nf3 {[%emt 0:00:00]} Nc6 {[%emt 0:00:04]} 3. Bb5 {[%emt 0:00:00]} a6 {[%emt 0:00:04]} 4. Ba4 {[%emt 0:00:04]} Nf6 {[%emt 0:00:16]} 5. Qe2 {[%emt 0:00:09]} Be7 6. O-O {[%emt 0:00:34]} b5 {[%emt 0:00:37]} 7. Bb3 {[%emt 0:00:05]} O-O {[%emt 0:00:16]} 8. c3 {[%emt 0:00:08]} d5 {[%emt 0:00:28]} 9. d3 {[%emt 0:01:11]} Be6 {[%emt 0:01:25]} 10. Rd1 {[%emt 0:00:45]} Re8 {[%emt 0:01:13]} 11. Nbd2 {[%emt 0:02:03]} h6 {[%emt 0:00:07]} 12. Nf1 {[%emt 0:02:39]} Bd6 {[%emt 0:00:11]} 13. Ng3 {[%emt 0:02:52]} Ne7 {[%emt 0:01:25]} 14. d4 {[%emt 0:23:23]} Ng6 {[%emt 0:00:13]} 15. dxe5 {[%emt 0:08:51]} Nxe5 {[%emt 0:02:03]} 16. Nd4 {[%emt 0:06:49]} Bd7 {[%emt 0:20:23]} 17. f4 {[%emt 0:08:45]} Bg4 {[%emt 0:23:09]} 18. Nf3 {[%emt 0:10:19]} dxe4 {[%emt 0:10:54]} 19. fxe5 {[%emt 0:00:14]} exf3 {[%emt 0:00:24]} 20. gxf3 {[%emt 0:00:18]} Bh3 {[%emt 0:00:33]} 21. Bf4 {[%emt 0:05:39]} Nd7 {[%emt 0:06:51]} 22. Rd5 {[%emt 0:05:04]} Qh4 {[%emt 0:03:08]} 23. Rd4 {[%emt 0:11:08]} Bc5 {[%emt 0:00:56]} 24. Be3 {[%emt 0:00:03]} Bxd4 {[%emt 0:01:15]} 25. cxd4 {[%emt 0:00:01]} c5 {[%emt 0:00:21]} 26. Rd1 {[%emt 0:01:44]} cxd4 {[%emt 0:02:57]} 27. Rxd4 {[%emt 0:00:09]} Qe7 {[%emt 0:00:03]} 28. f4 {[%emt 0:00:34]} Nc5 {[%emt 0:01:30]} 29. Bc2 {[%emt 0:01:58]} Rad8 {[%emt 0:07:41]} 30. Qh5 {[%emt 0:02:01]} Bc8 {[%emt 0:01:49]} 31. Nf5 {[%emt 0:01:29]} Bxf5 {[%emt 0:00:19]} 32. Qxf5 {[%emt 0:00:04]} g6 {[%emt 0:00:17]} 33. Qh3 {[%emt 0:01:09]} Rxd4 {[%emt 0:00:27]} 34. Bxd4 {[%emt 0:00:10]} Ne6 {[%emt 0:00:49]} 35. Be3 {[%emt 0:00:26]} Nxf4 {[%emt 0:00:41]} 36. Qxh6 {[%emt 0:00:17]} Qxe5 {[%emt 0:00:21]} 37. Bxf4 {[%emt 0:02:27]} Qc5+ {[%emt 0:00:36]} 0-1

[Event "Commonwealth Open 2019"]
[Site "Delhi"]
[Date "2019.07.07"]
[Round "9.13"]
[White "Laxman, R.R."]
[Black "Priyanka, K."]
[Result "1-0"]
[ECO "A48"]
[WhiteElo "2437"]
[BlackElo "2053"]
[Annotator "NA"]
[PlyCount "65"]
[EventDate "2019.06.30"]
[EventType "swiss"]
[EventCountry "IND"]
[SourceTitle "playchess.com"]
[Source "ChessBase"]
[SourceQuality "1"]
[TimeControl "5400+30"]

1. d4 {[%emt 0:00:00]} Nf6 {[%emt 0:00:20]} 2. Nf3 {[%emt 0:00:00]} g6 {[%emt 0:00:05]} 3. Nbd2 {[%emt 0:00:00]} d5 {[%emt 0:00:40]} 4. e3 {[%emt 0:00:00]} Bg7 {[%emt 0:00:28]} 5. b4 {[%emt 0:00:00]} c6 {[%emt 0:10:15]} 6. c4 {[%emt 0:00:22]} O-O {[%emt 0:01:42]} 7. Be2 {[%emt 0:00:11]} Ne4 {[%emt 0:06:06]} 8. Nxe4 {[%emt 0:01:29]} dxe4 {[%emt 0:00:09]} 9. Nd2 {[%emt 0:00:02]} e5 {[%emt 0:01:51]} 10. dxe5 {[%emt 0:00:52]} Bxe5 {[%emt 0:04:49]} 11. Rb1 {[%emt 0:00:03]} a5 {[%emt 0:04:31]} 12. b5 {[%emt 0:00:26]} f5 {[%emt 0:03:28]} 13. Ba3 {[%emt 0:00:45]} Re8 {[%emt 0:01:16]} 14. c5 {[%emt 0:01:13]} Be6 {[%emt 0:04:11]} 15. Qc2 {[%emt 0:01:13]} Nd7 {[%emt 0:11:30]} 16. bxc6 {[%emt 0:01:22]} bxc6 {[%emt 0:00:08]} 17. Nc4 {[%emt 0:02:11]} Bf6 {[%emt 0:02:04]} 18. Nd6 {[%emt 0:02:55]} Re7 {[%emt 0:00:36]} 19. Bc4 {[%emt 0:00:33]} Bxc4 {[%emt 0:00:55]} 20. Qxc4+ {[%emt 0:00:05]} Kg7 {[%emt 0:00:08]} 21. O-O {[%emt 0:00:28]} Ne5 {[%emt 0:00:48]} 22. Qa4 {[%emt 0:00:06]} Rb8 {[%emt 0:02:41]} 23. Rb6 {[%emt 0:03:53]} Rd7 {[%emt 0:11:42]} 24. Rfb1 {[%emt 0:01:06]} Rxb6 {[%emt 0:06:46]} 25. cxb6 Nf3+ {[%emt 0:06:31]} 26. gxf3 {[%emt 0:01:01]} Be5 {[%emt 0:00:51]} 27. f4 {[%emt 0:01:45]} Bxd6 {[%emt 0:01:09]} 28. Bxd6 {[%emt 0:00:06]} Rxd6 {[%emt 0:00:13]} 29. b7 {[%emt 0:01:04]} Qh4 {[%emt 0:00:48]} 30. b8=Q {[%emt 0:00:06]} Qg4+ {[%emt 0:00:32]} 31. Kf1 {[%emt 0:00:02]} Qh3+ {[%emt 0:01:40]} 32. Ke1 {[%emt 0:00:01]} Qf3 {[%emt 0:00:11]} 33. Qxd6 {[%emt 0:00:08]} 1-0

[Event "Commonwealth Open 2019"]
[Site "Delhi"]
[Date "2019.07.07"]
[Round "9.14"]
[White "Nitin, S.."]
[Black "Anilkumar, O.T."]
[Result "0-1"]
[ECO "B01"]
[WhiteElo "2398"]
[BlackElo "1989"]
[Annotator "NA"]
[PlyCount "78"]
[EventDate "2019.06.30"]
[EventType "swiss"]
[EventCountry "IND"]
[SourceTitle "playchess.com"]
[Source "ChessBase"]
[SourceQuality "1"]
[TimeControl "5400+30"]

1. e4 {[%emt 0:00:07]} d5 {[%emt 0:00:00]} 2. exd5 {[%emt 0:00:12]} Qxd5 {[%emt 0:00:00]} 3. Nc3 {[%emt 0:00:10]} Qa5 {[%emt 0:00:00]} 4. d4 {[%emt 0:00:22]} Nf6 {[%emt 0:00:00]} 5. Bd3 {[%emt 0:01:33]} Bg4 {[%emt 0:00:28]} 6. Nge2 {[%emt 0:00:15]} e6 {[%emt 0:00:08]} 7. f3 {[%emt 0:01:56]} Bf5 {[%emt 0:00:16]} 8. O-O {[%emt 0:01:48]} Bxd3 {[%emt 0:00:18]} 9. Qxd3 {[%emt 0:00:11]} c6 {[%emt 0:00:10]} 10. Ne4 {[%emt 0:00:51]} Be7 {[%emt 0:00:38]} 11. a4 {[%emt 0:03:35]} O-O {[%emt 0:00:33]} 12. Bd2 {[%emt 0:00:08]} Qc7 {[%emt 0:00:22]} 13. a5 {[%emt 0:01:46]} Nbd7 {[%emt 0:00:05]} 14. Bf4 {[%emt 0:00:50]} Qd8 {[%emt 0:04:39]} 15. Nd6 {[%emt 0:05:25]} Bxd6 {[%emt 0:00:23]} 16. Bxd6 {[%emt 0:00:09]} Re8 {[%emt 0:00:04]} 17. Ng3 {[%emt 0:01:25]} Nf8 {[%emt 0:00:38]} 18. Qa3 {[%emt 0:00:42]} Ng6 {[%emt 0:01:36]} 19. f4 {[%emt 0:05:45]} Qd7 {[%emt 0:00:03]} 20. Rad1 {[%emt 0:02:57]} b6 {[%emt 0:02:48]} 21. Be5 {[%emt 0:01:09]} Nd5 {[%emt 0:00:26]} 22. c4 {[%emt 0:00:44]} Nde7 {[%emt 0:04:02]} 23. Nh5 {[%emt 0:16:23]} Nxe5 {[%emt 0:00:12]} 24. dxe5 {[%emt 0:00:19]} Qc7 25. Qg3 {[%emt 0:00:50]} Ng6 {[%emt 0:00:59]} 26. Rd6 {[%emt 0:01:21]} Rad8 {[%emt 0:00:06]} 27. Rfd1 {[%emt 0:03:38]} Rxd6 {[%emt 0:00:07]} 28. Rxd6 {[%emt 0:00:30]} bxa5 {[%emt 0:01:43]} 29. c5 {[%emt 0:00:23]} Qb7 30. Qc3 {[%emt 0:02:35]} Ne7 {[%emt 0:05:12]} 31. Qxa5 {[%emt 0:10:08]} Qxb2 {[%emt 0:03:09]} 32. h3 {[%emt 0:00:56]} Qb8 {[%emt 0:05:08]} 33. Kh2 {[%emt 0:01:04]} Nd5 {[%emt 0:00:40]} 34. Qa4 {[%emt 0:02:57]} Qb5 {[%emt 0:10:39]} 35. Qxa7 {[%emt 0:01:45]} Qe2 {[%emt 0:00:19]} 36. Rxe6 {[%emt 0:00:12]} Rf8 {[%emt 0:00:16]} 37. Qd7 {[%emt 0:06:34]} Ne3 {[%emt 0:02:29]} 38. Qxc6 {[%emt 0:00:28]} fxe6 {[%emt 0:00:21]} 39. Qb7 {[%emt 0:00:07]} Qxh5 {[%emt 0:00:03]} 0-1

[Event "Commonwealth Open 2019"]
[Site "Delhi"]
[Date "2019.07.07"]
[Round "9.15"]
[White "Kulkarni, Bhakti"]
[Black "Sa, Kannan"]
[Result "1-0"]
[ECO "C54"]
[WhiteElo "2380"]
[BlackElo "1947"]
[Annotator "NA"]
[PlyCount "57"]
[EventDate "2019.06.30"]
[EventType "swiss"]
[EventCountry "IND"]
[SourceTitle "playchess.com"]
[Source "ChessBase"]
[SourceQuality "1"]
[TimeControl "5400+30"]

1. e4 {[%emt 0:00:00]} e5 {[%emt 0:06:41]} 2. Nf3 {[%emt 0:00:00]} Nc6 {[%emt 0:00:09]} 3. Bc4 {[%emt 0:00:43]} Bc5 {[%emt 0:00:12]} 4. c3 {[%emt 0:00:39]} Nf6 {[%emt 0:00:15]} 5. d4 {[%emt 0:00:22]} exd4 {[%emt 0:00:19]} 6. e5 {[%emt 0:00:26]} d5 {[%emt 0:00:55]} 7. Bb5 {[%emt 0:00:22]} Ne4 {[%emt 0:00:35]} 8. cxd4 {[%emt 0:00:06]} Bb4+ {[%emt 0:00:38]} 9. Nbd2 {[%emt 0:00:36]} Bg4 {[%emt 0:05:32]} 10. Qa4 {[%emt 0:06:05]} Bd7 {[%emt 0:25:14]} 11. O-O {[%emt 0:06:29]} Bxd2 {[%emt 0:01:22]} 12. Nxd2 {[%emt 0:01:27]} O-O {[%emt 0:09:08]} 13. Nf3 {[%emt 0:15:02]} Qe8 {[%emt 0:08:41]} 14. Bxc6 {[%emt 0:08:59]} Bxc6 {[%emt 0:02:43]} 15. Qb3 {[%emt 0:00:22]} a5 {[%emt 0:03:58]} 16. Nh4 {[%emt 0:04:26]} f6 {[%emt 0:17:46]} 17. f3 {[%emt 0:10:09]} fxe5 {[%emt 0:01:55]} 18. fxe4 {[%emt 0:01:08]} Rxf1+ {[%emt 0:01:16]} 19. Kxf1 {[%emt 0:00:02]} Qh5 {[%emt 0:00:56]} 20. exd5 {[%emt 0:02:33]} a4 {[%emt 0:02:17]} 21. Qc4 {[%emt 0:01:54]} Qd1+ {[%emt 0:06:45]} 22. Kf2 {[%emt 0:00:02]} Rf8+ {[%emt 0:02:47]} 23. Nf3 {[%emt 0:00:48]} Be8 {[%emt 0:00:45]} 24. d6+ {[%emt 0:01:44]} Kh8 {[%emt 0:00:38]} 25. dxc7 {[%emt 0:01:51]} Bc6 {[%emt 0:00:25]} 26. d5 {[%emt 0:00:54]} Bd7 {[%emt 0:00:34]} 27. Qe4 {[%emt 0:01:56]} Bb5 {[%emt 0:00:30]} 28. Qf5 {[%emt 0:00:37]} Qf1+ {[%emt 0:00:30]} 29. Kg3 {[%emt 0:00:10]} 1-0

[Event "Commonwealth Open 2019"]
[Site "Delhi"]
[Date "2019.07.07"]
[Round "9.16"]
[White "Ajay Karthikeyan"]
[Black "Rathnakaran, K.."]
[Result "1-0"]
[ECO "A40"]
[WhiteElo "2216"]
[BlackElo "2338"]
[Annotator "NA"]
[PlyCount "115"]
[EventDate "2019.06.30"]
[EventType "swiss"]
[EventCountry "IND"]
[SourceTitle "playchess.com"]
[Source "ChessBase"]
[SourceQuality "1"]
[TimeControl "5400+30"]

1. d4 {[%emt 0:03:55]} g6 {[%emt 0:00:00]} 2. Nf3 {[%emt 0:00:50]} Bg7 {[%emt 0:00:00]} 3. g3 {[%emt 0:00:06]} f5 {[%emt 0:00:02]} 4. Bg2 {[%emt 0:00:04]} Nf6 {[%emt 0:00:06]} 5. O-O {[%emt 0:00:05]} O-O {[%emt 0:00:06]} 6. b3 {[%emt 0:00:01]} d6 {[%emt 0:00:11]} 7. Bb2 {[%emt 0:00:08]} a5 {[%emt 0:00:30]} 8. c4 {[%emt 0:02:22]} Qe8 {[%emt 0:00:48]} 9. Nc3 {[%emt 0:02:33]} c6 {[%emt 0:00:08]} 10. d5 {[%emt 0:00:26]} h6 {[%emt 0:01:02]} 11. Rc1 {[%emt 0:00:28]} g5 {[%emt 0:00:25]} 12. e3 {[%emt 0:06:16]} c5 {[%emt 0:01:31]} 13. Qe2 {[%emt 0:09:02]} Qg6 {[%emt 0:01:03]} 14. Rfe1 {[%emt 0:02:24]} Nbd7 {[%emt 0:00:32]} 15. Nb5 {[%emt 0:10:14]} Ne8 {[%emt 0:00:30]} 16. Bxg7 {[%emt 0:00:19]} Qxg7 {[%emt 0:00:08]} 17. a4 {[%emt 0:04:23]} Ne5 {[%emt 0:06:58]} 18. Nc3 {[%emt 0:20:40]} Ng6 {[%emt 0:01:27]} 19. Rf1 {[%emt 0:01:52]} Bd7 {[%emt 0:02:23]} 20. Ne1 {[%emt 0:01:47]} f4 {[%emt 0:00:16]} 21. exf4 {[%emt 0:00:09]} gxf4 {[%emt 0:00:06]} 22. Kh1 {[%emt 0:01:02]} fxg3 {[%emt 0:00:43]} 23. hxg3 {[%emt 0:00:57]} Nf6 {[%emt 0:00:12]} 24. Ne4 {[%emt 0:01:09]} Ne5 {[%emt 0:02:43]} 25. Nxc5 {[%emt 0:06:18]} Bg4 {[%emt 0:06:27]} 26. Qe3 {[%emt 0:00:25]} Qg6 {[%emt 0:00:21]} 27. Ncd3 {[%emt 0:02:11]} Qh5+ {[%emt 0:02:26]} 28. Kg1 {[%emt 0:00:34]} Ng6 {[%emt 0:06:47]} 29. f3 {[%emt 0:00:38]} Rf7 {[%emt 0:01:33]} 30. Nc2 {[%emt 0:01:58]} Bh3 {[%emt 0:02:20]} 31. Nd4 {[%emt 0:03:55]} Kh8 {[%emt 0:04:21]} 32. g4 {[%emt 0:06:23]} Bxg4 {[%emt 0:00:06]} 33. fxg4 {[%emt 0:00:03]} Qxg4 {[%emt 0:00:04]} 34. Nf2 {[%emt 0:04:21]} Qh5 {[%emt 0:00:44]} 35. Bf3 {[%emt 0:01:49]} Qh4 {[%emt 0:00:08]} 36. Nf5 {[%emt 0:00:04]} Qf4 {[%emt 0:00:05]} 37. Qxf4 {[%emt 0:00:20]} Nxf4 {[%emt 0:00:05]} 38. Ng3 {[%emt 0:01:56]} Rg8 {[%emt 0:02:18]} 39. Kh2 {[%emt 0:00:01]} Nd7 {[%emt 0:00:15]} 40. Nh3 {[%emt 0:02:28]} Nxh3 {[%emt 0:09:00]} 41. Kxh3 {[%emt 0:00:02]} Rfg7 {[%emt 0:00:07]} 42. Rg1 {[%emt 0:02:55]} Ne5 {[%emt 0:00:43]} 43. Be4 {[%emt 0:01:53]} Rg4 44. Rcf1 {[%emt 0:00:29]} b6 {[%emt 0:04:13]} 45. Bb1 {[%emt 0:01:33]} R4g5 {[%emt 0:00:13]} 46. Rf5 {[%emt 0:00:28]} Rg4 {[%emt 0:00:02]} 47. Rh5 {[%emt 0:00:45]} Nf7 {[%emt 0:00:07]} 48. Bf5 {[%emt 0:00:44]} Rf4 {[%emt 0:00:05]} 49. Be6 {[%emt 0:00:32]} Ng5+ {[%emt 0:00:12]} 50. Kg2 {[%emt 0:00:07]} Rg6 {[%emt 0:00:12]} 51. Rgh1 {[%emt 0:00:50]} Kg7 {[%emt 0:00:21]} 52. R1h4 {[%emt 0:00:34]} Rf3 {[%emt 0:02:35]} 53. Bf5 {[%emt 0:00:29]} Rxb3 {[%emt 0:01:19]} 54. Bxg6 {[%emt 0:00:05]} Rb2+ {[%emt 0:00:02]} 55. Kf1 {[%emt 0:00:22]} Kxg6 {[%emt 0:00:38]} 56. Rxh6+ {[%emt 0:00:04]} Kg7 {[%emt 0:00:03]} 57. Nf5+ {[%emt 0:00:29]} Kf7 {[%emt 0:00:06]} 58. Rg4 {[%emt 0:00:18]} 1-0